[Event "Late-Titled-Tuesday-Blitz-May-14-2024"]
[Site "Chess.com"]
[Date "2024.05.14"]
[Round "7"]
[White "Javadovvv"]
[Black "AccioChess"]
[Result "0-1"]
[WhiteElo "2577"]
[BlackElo "2481"]
[TimeControl "180+1"]
[EndTime "15:14:22 PDT"]
[Termination "AccioChess won by resignation"]

1. d4 {[%clk 0:03:00]} 1... Nf6 {[%clk 0:02:59.2]} 2. Nf3 {[%clk 0:03:00.6]}
2... g6 {[%clk 0:02:58.3]} 3. Bf4 {[%clk 0:03:01.2]} 3... Bg7 {[%clk 0:02:58.1]}
4. e3 {[%clk 0:03:01.8]} 4... O-O {[%clk 0:02:58.2]} 5. Be2 {[%clk 0:03:02.4]}
5... d6 {[%clk 0:02:58.3]} 6. h3 {[%clk 0:03:03]} 6... Nc6 {[%clk 0:02:58.5]} 7.
O-O {[%clk 0:03:03.3]} 7... Nd7 {[%clk 0:02:58.6]} 8. c4 {[%clk 0:03:03.8]} 8...
e5 {[%clk 0:02:58.7]} 9. Bh2 {[%clk 0:03:04.5]} 9... f5 {[%clk 0:02:56.2]} 10.
Nc3 {[%clk 0:03:04.6]} 10... e4 {[%clk 0:02:43.8]} 11. Nd2 {[%clk 0:03:04.4]}
11... Qg5 {[%clk 0:02:38.3]} 12. Rc1 {[%clk 0:02:58.5]} 12... Nf6 {[%clk
0:02:37.6]} 13. Bf4 {[%clk 0:02:55.6]} 13... Qh4 {[%clk 0:02:36.3]} 14. Bg3
{[%clk 0:02:35.7]} 14... Qh6 {[%clk 0:02:34.2]} 15. Nb5 {[%clk 0:02:27]} 15...
g5 {[%clk 0:02:32.1]} 16. Nxc7 {[%clk 0:02:25.7]} 16... f4 {[%clk 0:02:32.4]}
17. Nxa8 {[%clk 0:02:14.4]} 17... fxg3 {[%clk 0:02:32]} 18. fxg3 {[%clk
0:02:15.3]} 18... g4 {[%clk 0:02:32.5]} 19. Rf4 {[%clk 0:02:04.5]} 19... gxh3
{[%clk 0:02:30.4]} 20. Nc7 {[%clk 0:01:55.6]} 20... hxg2 {[%clk 0:02:29.5]} 21.
Kf2 {[%clk 0:01:15.9]} 21... Nxd4 {[%clk 0:01:46.2]} 22. exd4 {[%clk 0:01:11.6]}
22... Qh2 {[%clk 0:01:35.4]} 23. Qg1 {[%clk 0:00:55.9]} 23... Ng4+ {[%clk
0:01:32.4]} 24. Bxg4 {[%clk 0:00:53.6]} 24... Bxd4+ {[%clk 0:01:31.4]} 25. Ke2
{[%clk 0:00:53.9]} 25... Bxg1 {[%clk 0:01:28]} 26. Rxf8+ {[%clk 0:00:53.7]}
26... Kxf8 {[%clk 0:01:27.6]} 27. Bxc8 {[%clk 0:00:54.6]} 27... Bb6 {[%clk
0:01:22.4]} 0-1

[Event "Late-Titled-Tuesday-Blitz-May-14-2024"]
[Site "Chess.com"]
[Date "2024.05.14"]
[Round "7"]
[White "cthulhuuu"]
[Black "campochess"]
[Result "1-0"]
[WhiteElo "2475"]
[BlackElo "2123"]
[TimeControl "180+1"]
[EndTime "15:14:43 PDT"]
[Termination "cthulhuuu won by resignation"]

1. e4 {[%clk 0:03:00.1]} 1... c5 {[%clk 0:02:59.8]} 2. Nf3 {[%clk 0:03:00.3]}
2... Nc6 {[%clk 0:02:59.9]} 3. g3 {[%clk 0:03:00.6]} 3... e6 {[%clk 0:02:58.1]}
4. d3 {[%clk 0:03:01]} 4... Nf6 {[%clk 0:02:57.7]} 5. Bg2 {[%clk 0:03:01.2]}
5... d5 {[%clk 0:02:57.7]} 6. Nbd2 {[%clk 0:03:01.6]} 6... dxe4 {[%clk
0:02:57.2]} 7. dxe4 {[%clk 0:03:02.5]} 7... e5 {[%clk 0:02:55.2]} 8. O-O {[%clk
0:03:02.8]} 8... Be7 {[%clk 0:02:55.2]} 9. c3 {[%clk 0:03:02.8]} 9... O-O {[%clk
0:02:53.8]} 10. Qe2 {[%clk 0:03:02.7]} 10... Qc7 {[%clk 0:02:53.7]} 11. Nc4
{[%clk 0:03:00]} 11... b6 {[%clk 0:02:51.9]} 12. Nh4 {[%clk 0:02:53.7]} 12... g6
{[%clk 0:02:50.2]} 13. Ne3 {[%clk 0:02:50.5]} 13... Nd8 {[%clk 0:02:23.5]} 14.
Nd5 {[%clk 0:02:48.3]} 14... Nxd5 {[%clk 0:02:21.7]} 15. exd5 {[%clk 0:02:49.2]}
15... Bd6 {[%clk 0:02:21.5]} 16. f4 {[%clk 0:02:39.8]} 16... Re8 {[%clk
0:02:17.6]} 17. fxe5 {[%clk 0:02:37.3]} 17... Rxe5 {[%clk 0:02:16.1]} 18. Qd1
{[%clk 0:02:29.2]} 18... Ba6 {[%clk 0:02:14.8]} 19. Rf2 {[%clk 0:02:12.1]} 19...
Re7 {[%clk 0:02:09.9]} 20. Bg5 {[%clk 0:02:08.7]} 20... Nb7 {[%clk 0:02:07.6]}
21. Bxe7 {[%clk 0:02:08.2]} 21... Bxe7 {[%clk 0:02:07.2]} 22. Qa4 {[%clk
0:01:51.9]} 22... Bxh4 {[%clk 0:01:53.9]} 23. Qxa6 {[%clk 0:01:47.7]} 23... Bg5
{[%clk 0:01:41.2]} 24. d6 {[%clk 0:01:46.5]} 24... Nxd6 {[%clk 0:01:41]} 25.
Bxa8 {[%clk 0:01:46.3]} 25... Be3 {[%clk 0:01:40.6]} 26. Qe2 {[%clk 0:01:44.4]}
26... Nf5 {[%clk 0:01:38.9]} 27. Be4 {[%clk 0:01:38.2]} 27... Bxf2+ {[%clk
0:01:37]} 28. Qxf2 {[%clk 0:01:39.1]} 28... Nd6 {[%clk 0:01:36.7]} 29. Bd5
{[%clk 0:01:39.1]} 29... c4 {[%clk 0:01:28.5]} 30. Rf1 {[%clk 0:01:34.1]} 30...
a5 {[%clk 0:01:26]} 31. a4 {[%clk 0:01:33]} 31... Kg7 {[%clk 0:01:08.4]} 32.
Qd4+ {[%clk 0:01:32.3]} 32... Kg8 {[%clk 0:01:07.8]} 33. Rf6 {[%clk 0:01:24.5]}
33... Qe7 {[%clk 0:01:06]} 34. Rxd6 {[%clk 0:01:13.4]} 1-0

[Event "Late-Titled-Tuesday-Blitz-May-14-2024"]
[Site "Chess.com"]
[Date "2024.05.14"]
[Round "7"]
[White "tarno17"]
[Black "balack95"]
[Result "0-1"]
[WhiteElo "2215"]
[BlackElo "2486"]
[TimeControl "180+1"]
[EndTime "15:14:47 PDT"]
[Termination "balack95 won by checkmate"]

1. e4 {[%clk 0:03:00.9]} 1... c5 {[%clk 0:02:59.9]} 2. Nf3 {[%clk 0:03:00.4]}
2... Nc6 {[%clk 0:03:00.4]} 3. Bb5 {[%clk 0:03:00.7]} 3... Nd4 {[%clk 0:03:00]}
4. Bc4 {[%clk 0:02:57.3]} 4... e6 {[%clk 0:03:00.4]} 5. O-O {[%clk 0:02:55]}
5... Nc6 {[%clk 0:03:01]} 6. c3 {[%clk 0:02:52.8]} 6... Nf6 {[%clk 0:02:59.7]}
7. e5 {[%clk 0:02:50.5]} 7... Nd5 {[%clk 0:03:00]} 8. Bxd5 {[%clk 0:02:46.9]}
8... exd5 {[%clk 0:03:00.9]} 9. d4 {[%clk 0:02:47.2]} 9... cxd4 {[%clk
0:03:00.2]} 10. cxd4 {[%clk 0:02:45]} 10... d6 {[%clk 0:02:57.6]} 11. Re1 {[%clk
0:02:40.8]} 11... dxe5 {[%clk 0:02:57.8]} 12. Nxe5 {[%clk 0:02:13.9]} 12... Nxe5
{[%clk 0:02:56.5]} 13. Rxe5+ {[%clk 0:02:13]} 13... Be6 {[%clk 0:02:56.3]} 14.
Bg5 {[%clk 0:02:05.1]} 14... Qd7 {[%clk 0:02:53.3]} 15. Qe2 {[%clk 0:01:50.6]}
15... Bd6 {[%clk 0:02:52]} 16. Re3 {[%clk 0:01:38]} 16... O-O {[%clk 0:02:50.2]}
17. Nc3 {[%clk 0:01:36.2]} 17... a6 {[%clk 0:02:50.3]} 18. Re1 {[%clk
0:01:27.8]} 18... b5 {[%clk 0:02:48.4]} 19. Qf3 {[%clk 0:01:22.8]} 19... b4
{[%clk 0:02:45.4]} 20. Ne2 {[%clk 0:01:21.2]} 20... Bg4 {[%clk 0:02:40.4]} 21.
Re7 {[%clk 0:00:42.9]} 21... Bxe7 {[%clk 0:02:33.3]} 22. Qe3 {[%clk 0:00:40.8]}
22... Bxg5 {[%clk 0:02:32.1]} 23. Qxg5 {[%clk 0:00:39.7]} 23... Rae8 {[%clk
0:02:29.7]} 24. f3 {[%clk 0:00:40.2]} 24... Bf5 {[%clk 0:02:23]} 25. Kf2 {[%clk
0:00:38.1]} 25... Bd3 {[%clk 0:02:20.7]} 26. Nf4 {[%clk 0:00:35]} 26... Rxe1
{[%clk 0:02:12.3]} 27. Kxe1 {[%clk 0:00:35.9]} 27... Re8+ {[%clk 0:02:09.7]} 28.
Kf2 {[%clk 0:00:33.8]} 28... Qf5 {[%clk 0:02:01.3]} 29. Qg3 {[%clk 0:00:28.8]}
29... Bb5 {[%clk 0:01:55.3]} 30. h4 {[%clk 0:00:19.4]} 30... Qb1 {[%clk
0:01:54.2]} 31. Nxd5 {[%clk 0:00:01.9]} 31... Qe1# {[%clk 0:01:50.9]} 0-1

[Event "Late-Titled-Tuesday-Blitz-May-14-2024"]
[Site "Chess.com"]
[Date "2024.05.14"]
[Round "7"]
[White "hsd2016"]
[Black "1g60-1"]
[Result "0-1"]
[WhiteElo "2306"]
[BlackElo "2419"]
[TimeControl "180+1"]
[EndTime "15:14:50 PDT"]
[Termination "1g60-1 won by resignation"]

1. e4 {[%clk 0:02:45.7]} 1... e6 {[%clk 0:03:00.1]} 2. d4 {[%clk 0:02:45.5]}
2... d5 {[%clk 0:03:00.4]} 3. Nd2 {[%clk 0:02:46.4]} 3... Nf6 {[%clk 0:03:00.5]}
4. e5 {[%clk 0:02:46.8]} 4... Nfd7 {[%clk 0:03:01]} 5. f4 {[%clk 0:02:47]} 5...
c5 {[%clk 0:03:01.7]} 6. c3 {[%clk 0:02:47]} 6... Nc6 {[%clk 0:03:02.3]} 7. Ndf3
{[%clk 0:02:47.2]} 7... a5 {[%clk 0:03:03]} 8. a3 {[%clk 0:02:43.7]} 8... a4
{[%clk 0:03:02.8]} 9. Bd3 {[%clk 0:02:42.2]} 9... cxd4 {[%clk 0:03:02.1]} 10.
cxd4 {[%clk 0:02:42.2]} 10... Nb6 {[%clk 0:03:02.4]} 11. Ne2 {[%clk 0:02:42.4]}
11... Bd7 {[%clk 0:03:02.1]} 12. O-O {[%clk 0:02:42.1]} 12... Na5 {[%clk
0:03:02.6]} 13. f5 {[%clk 0:02:39.2]} 13... exf5 {[%clk 0:03:01.4]} 14. Nf4
{[%clk 0:02:34.3]} 14... Be6 {[%clk 0:02:59.1]} 15. Ng5 {[%clk 0:02:31.5]} 15...
Qd7 {[%clk 0:02:47.7]} 16. Qh5 {[%clk 0:01:51.3]} 16... g6 {[%clk 0:02:24.9]}
17. Qh3 {[%clk 0:01:51.6]} 17... O-O-O {[%clk 0:02:05.6]} 18. Ngxe6 {[%clk
0:01:32.3]} 18... fxe6 {[%clk 0:02:03]} 19. Nxg6 {[%clk 0:01:32.6]} 19... Rg8
{[%clk 0:02:01.2]} 20. Nxf8 {[%clk 0:01:30.4]} 20... Rdxf8 {[%clk 0:02:01.4]}
21. Bd2 {[%clk 0:01:29.4]} 21... Nb3 {[%clk 0:01:58.7]} 22. Bb4 {[%clk
0:00:43.5]} 22... Rf7 {[%clk 0:01:50.2]} 23. Rad1 {[%clk 0:00:16.4]} 23... Nc4
{[%clk 0:01:49.8]} 24. Bxc4 {[%clk 0:00:14.3]} 24... dxc4 {[%clk 0:01:49.9]} 25.
Rf2 {[%clk 0:00:07.6]} 25... Qd5 {[%clk 0:01:48]} 26. Rc2 {[%clk 0:00:06.7]}
26... Rfg7 {[%clk 0:01:46.8]} 27. g3 {[%clk 0:00:02.6]} 27... Nxd4 {[%clk
0:01:41.7]} 28. Rdd2 {[%clk 0:00:01.4]} 28... Nf3+ {[%clk 0:01:41.2]} 0-1

[Event "Late-Titled-Tuesday-Blitz-May-14-2024"]
[Site "Chess.com"]
[Date "2024.05.14"]
[Round "7"]
[White "SHIVACalypso"]
[Black "schondeln"]
[Result "1-0"]
[WhiteElo "2549"]
[BlackElo "2356"]
[TimeControl "180+1"]
[EndTime "15:14:54 PDT"]
[Termination "SHIVACalypso won by resignation"]

1. Nf3 {[%clk 0:03:00.9]} 1... d5 {[%clk 0:02:59.9]} 2. c4 {[%clk 0:03:00.5]}
2... c6 {[%clk 0:02:59.9]} 3. g3 {[%clk 0:03:00]} 3... Nf6 {[%clk 0:03:00.1]} 4.
Bg2 {[%clk 0:03:00.8]} 4... Bf5 {[%clk 0:02:59.3]} 5. O-O {[%clk 0:03:01.2]}
5... e6 {[%clk 0:02:59.4]} 6. d3 {[%clk 0:03:01.6]} 6... Nbd7 {[%clk 0:02:58.9]}
7. Nbd2 {[%clk 0:03:01.9]} 7... h6 {[%clk 0:02:59.2]} 8. Rb1 {[%clk 0:03:00.2]}
8... Be7 {[%clk 0:02:58]} 9. b4 {[%clk 0:02:59.7]} 9... O-O {[%clk 0:02:58]} 10.
a4 {[%clk 0:02:58]} 10... Re8 {[%clk 0:02:56.7]} 11. b5 {[%clk 0:02:58]} 11...
Bh7 {[%clk 0:02:49.1]} 12. bxc6 {[%clk 0:02:52.3]} 12... bxc6 {[%clk 0:02:48.4]}
13. Nd4 {[%clk 0:02:51.9]} 13... Qc7 {[%clk 0:02:36.8]} 14. cxd5 {[%clk
0:02:51.7]} 14... cxd5 {[%clk 0:02:34]} 15. Nb5 {[%clk 0:02:51.7]} 15... Qa5
{[%clk 0:02:20]} 16. Nb3 {[%clk 0:02:43.6]} 16... Qb6 {[%clk 0:02:17.2]} 17. Be3
{[%clk 0:02:41.1]} 17... Qd8 {[%clk 0:02:09.4]} 18. Bxa7 {[%clk 0:02:38.5]}
18... Nb6 {[%clk 0:02:06.3]} 19. a5 {[%clk 0:02:21.3]} 19... Nc8 {[%clk
0:01:59]} 20. Bd4 {[%clk 0:02:17.3]} 20... Bb4 {[%clk 0:01:58.1]} 21. Bc3 {[%clk
0:02:11.7]} 21... Bxc3 {[%clk 0:01:46.3]} 22. Nxc3 {[%clk 0:02:11.5]} 22... Nd6
{[%clk 0:01:43.7]} 23. Na4 {[%clk 0:02:08.2]} 23... Nd7 {[%clk 0:01:41.6]} 24.
Qd2 {[%clk 0:02:06]} 24... Ra7 {[%clk 0:01:27.1]} 25. Rfc1 {[%clk 0:01:58.3]}
25... Qa8 {[%clk 0:01:26.6]} 26. Nb6 {[%clk 0:01:52.3]} 26... Nxb6 {[%clk
0:01:23.7]} 27. axb6 {[%clk 0:01:52.5]} 27... Ra2 {[%clk 0:01:23.2]} 28. Qb4
{[%clk 0:01:50.7]} 28... Nf5 {[%clk 0:01:17.1]} 29. b7 {[%clk 0:01:45.1]} 29...
Qb8 {[%clk 0:01:11.8]} 30. Nc5 {[%clk 0:01:40.7]} 30... Rxe2 {[%clk 0:00:52.7]}
31. Nd7 {[%clk 0:01:27]} 31... Qa7 {[%clk 0:00:52]} 32. Qb6 {[%clk 0:01:27.5]}
32... Qxb7 {[%clk 0:00:27.2]} 33. Qxb7 {[%clk 0:01:27]} 1-0

[Event "Late-Titled-Tuesday-Blitz-May-14-2024"]
[Site "Chess.com"]
[Date "2024.05.14"]
[Round "7"]
[White "banane_verte"]
[Black "KorolDimitriy75"]
[Result "0-1"]
[WhiteElo "2525"]
[BlackElo "2414"]
[TimeControl "180+1"]
[EndTime "15:15:25 PDT"]
[Termination "KorolDimitriy75 won by checkmate"]

1. Nf3 {[%clk 0:03:00.9]} 1... c5 {[%clk 0:02:59.9]} 2. e4 {[%clk 0:02:59.4]}
2... d6 {[%clk 0:02:59.2]} 3. d4 {[%clk 0:03:00]} 3... cxd4 {[%clk 0:03:00.1]}
4. Qxd4 {[%clk 0:03:00.3]} 4... a6 {[%clk 0:02:59.9]} 5. Nc3 {[%clk 0:02:58.9]}
5... Nc6 {[%clk 0:02:59.6]} 6. Qd1 {[%clk 0:02:59.8]} 6... g6 {[%clk 0:02:59]}
7. Bg5 {[%clk 0:03:00.3]} 7... Bg7 {[%clk 0:02:58.7]} 8. Qd2 {[%clk 0:03:01]}
8... Nf6 {[%clk 0:02:56]} 9. O-O-O {[%clk 0:03:01.2]} 9... O-O {[%clk
0:02:40.5]} 10. e5 {[%clk 0:02:59.2]} 10... dxe5 {[%clk 0:02:16.3]} 11. Qxd8
{[%clk 0:02:57.1]} 11... Rxd8 {[%clk 0:02:13.9]} 12. Rxd8+ {[%clk 0:02:56.7]}
12... Nxd8 {[%clk 0:02:14.8]} 13. Nxe5 {[%clk 0:02:57.4]} 13... Be6 {[%clk
0:01:57.5]} 14. Bc4 {[%clk 0:02:54.6]} 14... Bxc4 {[%clk 0:01:39.7]} 15. Nxc4
{[%clk 0:02:55.5]} 15... Ne6 {[%clk 0:01:34]} 16. Be3 {[%clk 0:02:53.2]} 16...
Ng4 {[%clk 0:01:25.1]} 17. Nb6 {[%clk 0:02:51.2]} 17... Rd8 {[%clk 0:01:23]} 18.
Nbd5 {[%clk 0:02:49.7]} 18... Nxe3 {[%clk 0:01:16.4]} 19. Nxe3 {[%clk
0:02:48.9]} 19... Bxc3 {[%clk 0:01:11.5]} 20. bxc3 {[%clk 0:02:49.5]} 20... Kf8
{[%clk 0:00:51.4]} 21. Rd1 {[%clk 0:02:46.4]} 21... Rxd1+ {[%clk 0:00:46.6]} 22.
Kxd1 {[%clk 0:02:47.3]} 22... Ke8 {[%clk 0:00:47]} 23. Kd2 {[%clk 0:02:46.9]}
23... Nc5 {[%clk 0:00:42.6]} 24. c4 {[%clk 0:02:43.3]} 24... Ne4+ {[%clk
0:00:31]} 25. Ke1 {[%clk 0:02:43.1]} 25... Kd7 {[%clk 0:00:21.6]} 26. f3 {[%clk
0:02:42.5]} 26... Nc3 {[%clk 0:00:15.6]} 27. a3 {[%clk 0:02:42.9]} 27... Kc6
{[%clk 0:00:13]} 28. h4 {[%clk 0:02:39.6]} 28... Kc5 {[%clk 0:00:08.9]} 29. g4
{[%clk 0:02:40.1]} 29... Kd4 {[%clk 0:00:07.7]} 30. Kd2 {[%clk 0:02:40.6]} 30...
Nb1+ {[%clk 0:00:07.5]} 31. Ke2 {[%clk 0:02:41.2]} 31... Nxa3 {[%clk 0:00:08.4]}
32. g5 {[%clk 0:02:38.7]} 32... Nxc4 {[%clk 0:00:07.7]} 33. Ng4 {[%clk
0:02:39.6]} 33... a5 {[%clk 0:00:06.8]} 34. h5 {[%clk 0:02:39.6]} 34... gxh5
{[%clk 0:00:05.5]} 35. Nh6 {[%clk 0:02:39.4]} 35... h4 {[%clk 0:00:04.8]} 36.
Nxf7 {[%clk 0:02:37.1]} 36... h3 {[%clk 0:00:04.1]} 37. Kf2 {[%clk 0:02:33.8]}
37... a4 {[%clk 0:00:04.5]} 38. Nd8 {[%clk 0:02:32]} 38... a3 {[%clk 0:00:03.9]}
39. Ne6+ {[%clk 0:02:30.9]} 39... Kc3 {[%clk 0:00:02.5]} 40. Nc5 {[%clk
0:02:29.1]} 40... a2 {[%clk 0:00:01.4]} 41. Nb3 {[%clk 0:02:28.5]} 41... Kxc2
{[%clk 0:00:01.8]} 42. Nd4+ {[%clk 0:02:22.6]} 42... Kb2 {[%clk 0:00:02.3]} 43.
Nb3 {[%clk 0:02:21.8]} 43... a1=Q {[%clk 0:00:03.2]} 44. Nxa1 {[%clk 0:02:22.5]}
44... Kxa1 {[%clk 0:00:03.4]} 45. f4 {[%clk 0:02:23.4]} 45... Kb2 {[%clk
0:00:03.4]} 46. f5 {[%clk 0:02:23.3]} 46... Kc3 {[%clk 0:00:03.8]} 47. g6 {[%clk
0:02:23.8]} 47... hxg6 {[%clk 0:00:02.5]} 48. fxg6 {[%clk 0:02:24.7]} 48... Nd6
{[%clk 0:00:01.8]} 49. Kf3 {[%clk 0:02:21.5]} 49... Ne8 {[%clk 0:00:02.1]} 50.
Kg3 {[%clk 0:02:21.4]} 50... Kd4 {[%clk 0:00:02.5]} 51. g7 {[%clk 0:02:21.4]}
51... Nxg7 {[%clk 0:00:02.6]} 52. Kxh3 {[%clk 0:02:21]} 52... b5 {[%clk
0:00:03.5]} 53. Kg4 {[%clk 0:02:21.1]} 53... b4 {[%clk 0:00:04.4]} 54. Kg5
{[%clk 0:02:21.9]} 54... b3 {[%clk 0:00:05.3]} 55. Kg6 {[%clk 0:02:22.5]} 55...
b2 {[%clk 0:00:06.2]} 56. Kf7 {[%clk 0:02:23.2]} 56... b1=Q {[%clk 0:00:07.1]}
57. Kg8 {[%clk 0:02:23.9]} 57... Qe4 {[%clk 0:00:07.2]} 58. Kh8 {[%clk
0:02:24.4]} 58... e5 {[%clk 0:00:07.3]} 59. Kg8 {[%clk 0:02:25.3]} 59... Qf4
{[%clk 0:00:07]} 60. Kh8 {[%clk 0:02:25.8]} 60... e4 {[%clk 0:00:06.5]} 61. Kg8
{[%clk 0:02:26.7]} 61... e3 {[%clk 0:00:06.7]} 62. Kh8 {[%clk 0:02:27.6]} 62...
e2 {[%clk 0:00:06.5]} 63. Kg8 {[%clk 0:02:28.5]} 63... e1=Q {[%clk 0:00:05.3]}
64. Kh8 {[%clk 0:02:29.4]} 64... Qe8+ {[%clk 0:00:04.8]} 65. Kh7 {[%clk
0:02:29.5]} 65... Qf5+ {[%clk 0:00:04.7]} 66. Kh6 {[%clk 0:02:28.8]} 66... Qeg6#
{[%clk 0:00:04.7]} 0-1

[Event "Late-Titled-Tuesday-Blitz-May-14-2024"]
[Site "Chess.com"]
[Date "2024.05.14"]
[Round "7"]
[White "Stanbad1"]
[Black "Licancabur"]
[Result "1-0"]
[WhiteElo "2614"]
[BlackElo "2490"]
[TimeControl "180+1"]
[EndTime "15:15:32 PDT"]
[Termination "Stanbad1 won on time"]

1. d4 {[%clk 0:03:00.9]} 1... d5 {[%clk 0:02:59.9]} 2. c4 {[%clk 0:02:58.9]}
2... dxc4 {[%clk 0:03:00.8]} 3. e3 {[%clk 0:02:58.5]} 3... e5 {[%clk 0:02:58.7]}
4. Bxc4 {[%clk 0:02:57.9]} 4... exd4 {[%clk 0:02:57.9]} 5. exd4 {[%clk
0:02:58.8]} 5... Bd6 {[%clk 0:02:58]} 6. Nf3 {[%clk 0:02:58.9]} 6... Nf6 {[%clk
0:02:57.5]} 7. O-O {[%clk 0:02:58.8]} 7... O-O {[%clk 0:02:56.4]} 8. Nc3 {[%clk
0:02:58.7]} 8... Nc6 {[%clk 0:02:50.2]} 9. h3 {[%clk 0:02:58.5]} 9... h6 {[%clk
0:02:48.3]} 10. Re1 {[%clk 0:02:56.8]} 10... a6 {[%clk 0:02:44.5]} 11. a3 {[%clk
0:02:55.6]} 11... Bf5 {[%clk 0:02:43.8]} 12. Be3 {[%clk 0:02:54.2]} 12... Qd7
{[%clk 0:02:40.2]} 13. b4 {[%clk 0:02:51.6]} 13... Rad8 {[%clk 0:02:32]} 14. Qb3
{[%clk 0:02:49.7]} 14... b5 {[%clk 0:02:21.7]} 15. Bf1 {[%clk 0:02:46.6]} 15...
Be6 {[%clk 0:02:09.2]} 16. Qc2 {[%clk 0:02:40.5]} 16... Nd5 {[%clk 0:02:02]} 17.
Ne4 {[%clk 0:02:39.9]} 17... Nxe3 {[%clk 0:01:47.2]} 18. fxe3 {[%clk 0:02:15.3]}
18... Ne7 {[%clk 0:01:34.8]} 19. Rac1 {[%clk 0:02:13.3]} 19... Nd5 {[%clk
0:01:29.9]} 20. Nc5 {[%clk 0:02:12.5]} 20... Bxc5 {[%clk 0:01:20]} 21. Qxc5
{[%clk 0:02:11.3]} 21... Qd6 {[%clk 0:00:37]} 22. e4 {[%clk 0:02:10]} 22... Nb6
{[%clk 0:00:21.5]} 23. d5 {[%clk 0:02:08.7]} 23... Bc8 {[%clk 0:00:19.1]} 24.
Qxc7 {[%clk 0:02:08.2]} 24... Qxc7 {[%clk 0:00:17.6]} 25. Rxc7 {[%clk
0:02:09.1]} 25... Rd7 {[%clk 0:00:16.6]} 26. Rec1 {[%clk 0:02:08.5]} 26... Rxc7
{[%clk 0:00:11.6]} 27. Rxc7 {[%clk 0:02:09.4]} 27... Na4 {[%clk 0:00:09.7]} 28.
Nd4 {[%clk 0:02:07.6]} 28... Re8 {[%clk 0:00:09.6]} 29. Nc6 {[%clk 0:02:07.4]}
29... Nc3 {[%clk 0:00:08.3]} 30. Ne7+ {[%clk 0:02:05.4]} 30... Kf8 {[%clk
0:00:06.3]} 31. Nxc8 {[%clk 0:02:04.8]} 31... Nxe4 {[%clk 0:00:06.3]} 32. d6
{[%clk 0:02:04.6]} 32... Nd2 {[%clk 0:00:05.6]} 33. Nb6 {[%clk 0:01:59.3]} 33...
Rd8 {[%clk 0:00:03.3]} 34. Rc8 {[%clk 0:01:58.5]} 34... Ke8 {[%clk 0:00:03.7]}
35. Rxd8+ {[%clk 0:01:57.3]} 35... Kxd8 {[%clk 0:00:03.9]} 36. Bd3 {[%clk
0:01:57.8]} 36... g6 {[%clk 0:00:03]} 37. Kf2 {[%clk 0:01:57.5]} 37... Nb3
{[%clk 0:00:03.1]} 38. Be4 {[%clk 0:01:55.7]} 38... Nd4 {[%clk 0:00:02.8]} 39.
Bb7 {[%clk 0:01:55.7]} 39... Nf5 {[%clk 0:00:02.8]} 40. Bxa6 {[%clk 0:01:52.9]}
40... Nxd6 {[%clk 0:00:03]} 41. Nd5 {[%clk 0:01:51.1]} 41... Kd7 {[%clk
0:00:02.8]} 42. Nc3 {[%clk 0:01:51]} 42... Kc6 {[%clk 0:00:02.4]} 43. a4 {[%clk
0:01:51.1]} 43... bxa4 {[%clk 0:00:01.5]} 44. Nxa4 {[%clk 0:01:51.1]} 44... Kd5
{[%clk 0:00:00.9]} 45. Bd3 {[%clk 0:01:50.4]} 45... f5 {[%clk 0:00:00.5]} 46.
Ke3 {[%clk 0:01:50.3]} 46... g5 {[%clk 0:00:01.1]} 47. Nc3+ {[%clk 0:01:47.2]}
1-0

[Event "Late-Titled-Tuesday-Blitz-May-14-2024"]
[Site "Chess.com"]
[Date "2024.05.14"]
[Round "7"]
[White "ozates"]
[Black "RespectfulDaveOnYouTube"]
[Result "1-0"]
[WhiteElo "2652"]
[BlackElo "2516"]
[TimeControl "180+1"]
[EndTime "15:15:33 PDT"]
[Termination "ozates won by checkmate"]

1. e4 {[%clk 0:03:00.9]} 1... c6 {[%clk 0:02:45.5]} 2. d4 {[%clk 0:02:59.9]}
2... d5 {[%clk 0:02:45.7]} 3. exd5 {[%clk 0:03:00.3]} 3... c5 {[%clk 0:02:44.4]}
4. c4 {[%clk 0:03:01.2]} 4... e6 {[%clk 0:02:39.6]} 5. dxe6 {[%clk 0:02:58.7]}
5... cxd4 {[%clk 0:02:36.4]} 6. exf7+ {[%clk 0:02:58]} 6... Kxf7 {[%clk
0:02:36.4]} 7. Nf3 {[%clk 0:02:58.1]} 7... Bb4+ {[%clk 0:02:31.4]} 8. Bd2 {[%clk
0:02:53.1]} 8... Be7 {[%clk 0:02:28.8]} 9. Ne5+ {[%clk 0:02:48.8]} 9... Kf8
{[%clk 0:02:20.8]} 10. Bd3 {[%clk 0:02:44.8]} 10... Nc6 {[%clk 0:02:17.6]} 11.
Nxc6 {[%clk 0:02:43.2]} 11... bxc6 {[%clk 0:02:18.5]} 12. O-O {[%clk 0:02:38.7]}
12... Nf6 {[%clk 0:02:18.7]} 13. Re1 {[%clk 0:02:38.1]} 13... Bg4 {[%clk
0:02:15]} 14. Qa4 {[%clk 0:02:37.6]} 14... Qc7 {[%clk 0:02:09.8]} 15. Na3 {[%clk
0:02:27.9]} 15... Kf7 {[%clk 0:01:46.8]} 16. c5 {[%clk 0:02:27.1]} 16... Rhe8
{[%clk 0:01:43]} 17. Bc4+ {[%clk 0:02:22.4]} 17... Kf8 {[%clk 0:01:43]} 18. Bb3
{[%clk 0:02:03.8]} 18... Rad8 {[%clk 0:01:20.4]} 19. Ba5 {[%clk 0:02:01]} 19...
Qd7 {[%clk 0:01:01.3]} 20. Bxd8 {[%clk 0:01:59.7]} 20... Rxd8 {[%clk 0:00:56.5]}
21. Nc4 {[%clk 0:02:00.3]} 21... Qc7 {[%clk 0:00:17.4]} 22. Ne5 {[%clk
0:01:57.1]} 22... Bxc5 {[%clk 0:00:16.3]} 23. Qc4 {[%clk 0:01:45.6]} 23... Rd5
{[%clk 0:00:15.8]} 24. Nxg4 {[%clk 0:01:37.5]} 24... Nxg4 {[%clk 0:00:16.1]} 25.
g3 {[%clk 0:01:31.1]} 25... Qf7 {[%clk 0:00:15.7]} 26. Qe2 {[%clk 0:01:27.2]}
26... d3 {[%clk 0:00:05.3]} 27. Qxg4 {[%clk 0:01:27.1]} 27... Qxf2+ {[%clk
0:00:02.9]} 28. Kh1 {[%clk 0:01:25.6]} 28... d2 {[%clk 0:00:01.5]} 29. Qc8+
{[%clk 0:01:06]} 29... Kf7 {[%clk 0:00:01.3]} 30. Qe6+ {[%clk 0:01:04.2]} 30...
Kf8 {[%clk 0:00:00.9]} 31. Qe8# {[%clk 0:01:04.8]} 1-0